[Event "*** SCC Grand Prix: Titled Tuesday Blitz"]
[Site "Chess.com"]
[Date "2020.06.23"]
[Round "3"]
[White "novendrapriasmoro"]
[Black "ShahMatKanal"]
[Result "1-0"]
[WhiteElo "2610"]
[BlackElo "2399"]
[TimeControl "180+1"]
[EndTime "10:29:27 PDT"]
[Termination "novendrapriasmoro won on time"]

1. e4 {[%clk 0:03:00.9]} 1... c6 {[%clk 0:02:58.7]} 2. d4 {[%clk 0:03:00.8]}
2... d5 {[%clk 0:02:58.7]} 3. Nd2 {[%clk 0:03:01.3]} 3... g6 {[%clk 0:02:58.5]}
4. Ngf3 {[%clk 0:03:00.7]} 4... Bg4 {[%clk 0:02:57.8]} 5. Bd3 {[%clk 0:02:49.9]}
5... Bg7 {[%clk 0:02:55.3]} 6. c3 {[%clk 0:02:47.5]} 6... e6 {[%clk 0:02:53.4]}
7. O-O {[%clk 0:02:46.4]} 7... Ne7 {[%clk 0:02:50.4]} 8. Re1 {[%clk 0:02:42.7]}
8... O-O {[%clk 0:02:48.2]} 9. h3 {[%clk 0:02:43]} 9... Bxf3 {[%clk 0:02:47.8]}
10. Nxf3 {[%clk 0:02:43.9]} 10... dxe4 {[%clk 0:02:46.4]} 11. Bxe4 {[%clk
0:02:44.8]} 11... a5 {[%clk 0:02:46.6]} 12. Bg5 {[%clk 0:02:44.7]} 12... Qc7
{[%clk 0:02:41]} 13. Qd2 {[%clk 0:02:43.9]} 13... Re8 {[%clk 0:02:36]} 14. Bh6
{[%clk 0:02:43.1]} 14... Bh8 {[%clk 0:02:35.7]} 15. Qg5 {[%clk 0:02:35.5]} 15...
Nd7 {[%clk 0:02:24.5]} 16. Qh4 {[%clk 0:02:35.1]} 16... Nf5 {[%clk 0:02:20.4]}
17. Bxf5 {[%clk 0:02:31.9]} 17... exf5 {[%clk 0:02:21.3]} 18. Bf4 {[%clk
0:02:18.4]} 18... Qd8 {[%clk 0:02:07.4]} 19. Rxe8+ {[%clk 0:02:17.3]} 19... Qxe8
{[%clk 0:02:07.1]} 20. Ng5 {[%clk 0:02:17.5]} 20... h5 {[%clk 0:01:54]} 21. Nf3
{[%clk 0:02:10.5]} 21... Bf6 {[%clk 0:01:47.1]} 22. Qg3 {[%clk 0:02:09.1]} 22...
Qe6 {[%clk 0:01:38.2]} 23. b3 {[%clk 0:01:42.5]} 23... Qe2 {[%clk 0:01:33.3]}
24. Bd2 {[%clk 0:01:38.3]} 24... Qe6 {[%clk 0:01:18.2]} 25. Re1 {[%clk
0:01:37.3]} 25... Qd5 {[%clk 0:01:15.4]} 26. c4 {[%clk 0:01:37.2]} 26... f4
{[%clk 0:00:24.9]} 27. Qxf4 {[%clk 0:01:36.3]} 27... Qf5 {[%clk 0:00:24.3]} 28.
Qxf5 {[%clk 0:01:36.3]} 28... gxf5 {[%clk 0:00:25.2]} 29. Bg5 {[%clk 0:01:29.7]}
29... Kg7 {[%clk 0:00:21.9]} 30. Bxf6+ {[%clk 0:01:29.3]} 30... Kxf6 {[%clk
0:00:22.3]} 31. Kf1 {[%clk 0:01:25.1]} 31... a4 {[%clk 0:00:22.1]} 32. b4 {[%clk
0:01:24.7]} 32... a3 {[%clk 0:00:21.8]} 33. Ke2 {[%clk 0:01:21.9]} 33... Ra4
{[%clk 0:00:21.1]} 34. Rd1 {[%clk 0:01:21.7]} 34... Rxb4 {[%clk 0:00:20.3]} 35.
Kd3 {[%clk 0:01:17.3]} 35... Nb6 {[%clk 0:00:18.6]} 36. Nd2 {[%clk 0:01:03.6]}
36... Na4 {[%clk 0:00:17.7]} 37. Rb1 {[%clk 0:00:58]} 37... Nb2+ {[%clk
0:00:13.8]} 38. Kc3 {[%clk 0:00:55]} 38... Rb6 {[%clk 0:00:13.8]} 39. Nb3 {[%clk
0:00:42.9]} 39... f4 {[%clk 0:00:13.1]} 40. Nd2 {[%clk 0:00:25.1]} 40... Na4+
{[%clk 0:00:12.3]} 41. Kc2 {[%clk 0:00:23.9]} 41... Nb2 {[%clk 0:00:12.4]} 42.
Ne4+ {[%clk 0:00:21.2]} 42... Kf5 {[%clk 0:00:11.7]} 43. Nd6+ {[%clk 0:00:20.7]}
43... Ke6 {[%clk 0:00:11.6]} 44. Rf1 {[%clk 0:00:19.7]} 44... Kxd6 {[%clk
0:00:11]} 45. c5+ {[%clk 0:00:19.7]} 45... Kd5 {[%clk 0:00:09.6]} 46. cxb6
{[%clk 0:00:20.6]} 46... Nc4 {[%clk 0:00:08]} 47. Re1 {[%clk 0:00:19.5]} 47...
Kxd4 {[%clk 0:00:06.3]} 48. Re7 {[%clk 0:00:19.3]} 48... Nxb6 {[%clk 0:00:06.9]}
49. Rxf7 {[%clk 0:00:19.2]} 49... Na4 {[%clk 0:00:03.3]} 50. Rxf4+ {[%clk
0:00:18.8]} 1-0

[Event "*** SCC Grand Prix: Titled Tuesday Blitz"]
[Site "Chess.com"]
[Date "2020.06.23"]
[Round "3"]
[White "kushagramohan"]
[Black "Firouzja2003"]
[Result "0-1"]
[WhiteElo "2721"]
[BlackElo "3128"]
[TimeControl "180+1"]
[EndTime "10:29:28 PDT"]
[Termination "Firouzja2003 won by resignation"]

1. e4 {[%clk 0:03:00.9]} 1... c6 {[%clk 0:02:55.8]} 2. d4 {[%clk 0:03:00.4]}
2... d5 {[%clk 0:02:54.9]} 3. Nd2 {[%clk 0:03:00.8]} 3... dxe4 {[%clk
0:02:53.5]} 4. Nxe4 {[%clk 0:03:01.7]} 4... Bf5 {[%clk 0:02:51.6]} 5. Ng3 {[%clk
0:03:01.8]} 5... Bg6 {[%clk 0:02:49.9]} 6. Nf3 {[%clk 0:03:01.3]} 6... Nd7
{[%clk 0:02:48.2]} 7. Bf4 {[%clk 0:03:01.5]} 7... Ngf6 {[%clk 0:02:45.3]} 8. Bd3
{[%clk 0:03:01.8]} 8... Qa5+ {[%clk 0:02:39]} 9. c3 {[%clk 0:02:57.3]} 9... Bxd3
{[%clk 0:02:37.1]} 10. Qxd3 {[%clk 0:02:57]} 10... e6 {[%clk 0:02:37.3]} 11. O-O
{[%clk 0:02:56.4]} 11... Be7 {[%clk 0:02:34.7]} 12. h3 {[%clk 0:02:55.9]} 12...
O-O {[%clk 0:02:32.9]} 13. Rfe1 {[%clk 0:02:55.7]} 13... Rad8 {[%clk 0:02:27]}
14. a4 {[%clk 0:02:55.3]} 14... c5 {[%clk 0:02:17.2]} 15. dxc5 {[%clk
0:02:55.1]} 15... Qxc5 {[%clk 0:02:12.7]} 16. b4 {[%clk 0:02:47.7]} 16... Qc8
{[%clk 0:02:08.7]} 17. Rac1 {[%clk 0:02:27.7]} 17... Nb6 {[%clk 0:02:02.7]} 18.
Qc2 {[%clk 0:02:19.6]} 18... Nfd5 {[%clk 0:01:57.3]} 19. Be5 {[%clk 0:02:16]}
19... Nc4 {[%clk 0:01:51.9]} 20. Bd4 {[%clk 0:02:10.6]} 20... b6 {[%clk
0:01:42.8]} 21. Ne5 {[%clk 0:02:02.7]} 21... Bf6 {[%clk 0:01:25.5]} 22. Nh5
{[%clk 0:01:51]} 22... Bxe5 {[%clk 0:01:23.4]} 23. Bxe5 {[%clk 0:01:51.9]} 23...
f6 {[%clk 0:01:13]} 24. Bh2 {[%clk 0:01:47.2]} 24... e5 {[%clk 0:01:12.7]} 25.
Re4 {[%clk 0:01:44.9]} 25... g6 {[%clk 0:01:08.6]} 26. Ng3 {[%clk 0:01:27.8]}
26... f5 {[%clk 0:01:06.1]} 27. Rh4 {[%clk 0:01:27]} 27... e4 {[%clk 0:00:49.3]}
28. Qb3 {[%clk 0:00:50.6]} 28... Qc6 {[%clk 0:00:29]} 29. Ne2 {[%clk 0:00:44.3]}
29... Rc8 {[%clk 0:00:28.2]} 30. Rd1 {[%clk 0:00:38.2]} 30... Rfd8 {[%clk
0:00:26.6]} 31. Rd4 {[%clk 0:00:35]} 31... a6 {[%clk 0:00:18.9]} 32. b5 {[%clk
0:00:32.3]} 32... axb5 {[%clk 0:00:18.5]} 33. axb5 {[%clk 0:00:33.2]} 33... Qc5
{[%clk 0:00:19.1]} 34. g4 {[%clk 0:00:17.5]} 34... e3 {[%clk 0:00:13.3]} 35.
gxf5 {[%clk 0:00:16.7]} 35... exf2+ {[%clk 0:00:13.4]} 36. Kxf2 {[%clk
0:00:17.6]} 36... Rf8 {[%clk 0:00:09.4]} 37. Ke1 {[%clk 0:00:14.4]} 37... Nce3
{[%clk 0:00:07]} 38. Rhe4 {[%clk 0:00:08.6]} 38... Rf7 {[%clk 0:00:07.5]} 39.
fxg6 {[%clk 0:00:07.7]} 39... hxg6 {[%clk 0:00:07.7]} 40. Bf4 {[%clk 0:00:07.7]}
40... Ng2+ {[%clk 0:00:07.4]} 41. Kd1 {[%clk 0:00:07.1]} 41... Ngxf4 {[%clk
0:00:07.6]} 42. Nxf4 {[%clk 0:00:08]} 42... Nxc3+ {[%clk 0:00:07.7]} 43. Kd2
{[%clk 0:00:07]} 43... Nxe4+ {[%clk 0:00:08.1]} 0-1

[Event "*** SCC Grand Prix: Titled Tuesday Blitz"]
[Site "Chess.com"]
[Date "2020.06.23"]
[Round "3"]
[White "Shota_Azaladze"]
[Black "realmadridtv"]
[Result "0-1"]
[WhiteElo "2700"]
[BlackElo "2449"]
[TimeControl "180+1"]
[EndTime "10:29:28 PDT"]
[Termination "realmadridtv won on time"]

1. Nf3 {[%clk 0:03:00.9]} 1... Nf6 {[%clk 0:02:59.6]} 2. g3 {[%clk 0:03:01.8]}
2... g6 {[%clk 0:02:59.3]} 3. Bg2 {[%clk 0:03:02.4]} 3... Bg7 {[%clk 0:03:00]}
4. O-O {[%clk 0:03:03.1]} 4... b6 {[%clk 0:03:00.6]} 5. d3 {[%clk 0:03:04]} 5...
Bb7 {[%clk 0:03:00.4]} 6. Nbd2 {[%clk 0:03:04.9]} 6... O-O {[%clk 0:02:59.9]} 7.
e4 {[%clk 0:03:05]} 7... c5 {[%clk 0:03:00.1]} 8. Ne1 {[%clk 0:03:03.3]} 8...
Nc6 {[%clk 0:02:59.2]} 9. f4 {[%clk 0:03:03]} 9... d6 {[%clk 0:02:56.1]} 10. g4
{[%clk 0:03:00.8]} 10... e6 {[%clk 0:02:50.5]} 11. h3 {[%clk 0:02:55.6]} 11...
d5 {[%clk 0:02:49.6]} 12. e5 {[%clk 0:02:55.4]} 12... Nd7 {[%clk 0:02:49.3]} 13.
Nef3 {[%clk 0:02:55]} 13... f6 {[%clk 0:02:44.8]} 14. exf6 {[%clk 0:02:53.9]}
14... Qxf6 {[%clk 0:02:45]} 15. Nb3 {[%clk 0:02:23.3]} 15... a5 {[%clk
0:02:37.8]} 16. a4 {[%clk 0:02:20.5]} 16... Rae8 {[%clk 0:02:21.5]} 17. Bd2
{[%clk 0:02:02]} 17... Qxb2 {[%clk 0:02:18.1]} 18. Rb1 {[%clk 0:02:00.5]} 18...
Qf6 {[%clk 0:02:17.3]} 19. c3 {[%clk 0:01:53.5]} 19... e5 {[%clk 0:02:09.6]} 20.
f5 {[%clk 0:01:46.8]} 20... e4 {[%clk 0:02:06.5]} 21. dxe4 {[%clk 0:01:40.9]}
21... dxe4 {[%clk 0:02:06.2]} 22. Bg5 {[%clk 0:01:41.5]} 22... Qf7 {[%clk
0:02:02.4]} 23. fxg6 {[%clk 0:01:39.2]} 23... hxg6 {[%clk 0:01:51.3]} 24. Ne5
{[%clk 0:01:32.9]} 24... Ndxe5 {[%clk 0:01:49.2]} 25. Rxf7 {[%clk 0:01:32.1]}
25... Nxf7 {[%clk 0:01:50.1]} 26. Be3 {[%clk 0:01:30.7]} 26... Nce5 {[%clk
0:01:47.7]} 27. Nxc5 {[%clk 0:01:29.9]} 27... Bc6 {[%clk 0:01:30.7]} 28. Rxb6
{[%clk 0:01:28.4]} 28... Rd8 {[%clk 0:01:14]} 29. Qb3 {[%clk 0:01:22.7]} 29...
Bd5 {[%clk 0:01:11.2]} 30. Qb1 {[%clk 0:01:19.5]} 30... Nf3+ {[%clk 0:01:10.4]}
31. Bxf3 {[%clk 0:01:16.3]} 31... exf3 {[%clk 0:01:11.1]} 32. Rxg6 {[%clk
0:01:14.4]} 32... Ne5 {[%clk 0:01:04.3]} 33. Rxg7+ {[%clk 0:01:06.7]} 33... Kxg7
{[%clk 0:01:04.5]} 34. Bd4 {[%clk 0:01:07.3]} 34... f2+ {[%clk 0:01:01.3]} 35.
Kh2 {[%clk 0:00:38.8]} 35... f1=Q {[%clk 0:00:44.5]} 36. Bxe5+ {[%clk
0:00:38.4]} 36... Kh6 {[%clk 0:00:43.4]} 37. g5+ {[%clk 0:00:14.8]} 37... Kxg5
{[%clk 0:00:30.3]} 38. h4+ {[%clk 0:00:15]} 38... Kxh4 {[%clk 0:00:24.3]} 39.
Qh7+ {[%clk 0:00:13.9]} 39... Kg4 {[%clk 0:00:21.4]} 40. Qg6+ {[%clk 0:00:13.9]}
40... Kf3 {[%clk 0:00:21.4]} 41. Qg3+ {[%clk 0:00:13.3]} 41... Ke2 {[%clk
0:00:21.4]} 42. Qd3+ {[%clk 0:00:13.4]} 42... Ke1 {[%clk 0:00:19.9]} 43. Qb1+
{[%clk 0:00:07]} 43... Kf2 {[%clk 0:00:12.7]} 44. Bg3+ {[%clk 0:00:02.7]} 44...
Ke3 {[%clk 0:00:09.5]} 0-1

[Event "*** SCC Grand Prix: Titled Tuesday Blitz"]
[Site "Chess.com"]
[Date "2020.06.23"]
[Round "3"]
[White "Alopekos"]
[Black "dretch"]
[Result "0-1"]
[WhiteElo "2450"]
[BlackElo "2781"]
[TimeControl "180+1"]
[EndTime "10:29:29 PDT"]
[Termination "dretch won on time"]

1. c4 {[%clk 0:03:00.9]} 1... c6 {[%clk 0:02:52.1]} 2. d4 {[%clk 0:02:58.3]}
2... d5 {[%clk 0:02:52.2]} 3. cxd5 {[%clk 0:02:58]} 3... cxd5 {[%clk 0:02:52.4]}
4. Nc3 {[%clk 0:02:55.3]} 4... Nc6 {[%clk 0:02:52.7]} 5. g3 {[%clk 0:02:53.7]}
5... Bf5 {[%clk 0:02:51.3]} 6. Bg2 {[%clk 0:02:54.6]} 6... e6 {[%clk 0:02:50.5]}
7. Nf3 {[%clk 0:02:51.5]} 7... Be7 {[%clk 0:02:48]} 8. O-O {[%clk 0:02:52]} 8...
Nf6 {[%clk 0:02:48.2]} 9. Nh4 {[%clk 0:02:48]} 9... Be4 {[%clk 0:02:45.9]} 10.
Nxe4 {[%clk 0:02:44.8]} 10... dxe4 {[%clk 0:02:45.8]} 11. Bg5 {[%clk 0:02:41]}
11... Qxd4 {[%clk 0:02:39.1]} 12. Qc2 {[%clk 0:02:37]} 12... O-O {[%clk
0:02:30.6]} 13. Bxf6 {[%clk 0:02:33.4]} 13... Bxf6 {[%clk 0:02:29.6]} 14. Rad1
{[%clk 0:02:30.5]} 14... Qe5 {[%clk 0:02:13.9]} 15. Bxe4 {[%clk 0:02:27.1]}
15... Bxh4 {[%clk 0:02:05.7]} 16. gxh4 {[%clk 0:02:27.5]} 16... g6 {[%clk
0:01:54.4]} 17. f4 {[%clk 0:02:20.3]} 17... Qb5 {[%clk 0:01:44.2]} 18. a4 {[%clk
0:01:59.9]} 18... Qb6+ {[%clk 0:01:35.4]} 19. Kh1 {[%clk 0:01:58.2]} 19... Rac8
{[%clk 0:01:35.4]} 20. Qb1 {[%clk 0:01:49]} 20... Nd4 {[%clk 0:01:25]} 21. h5
{[%clk 0:01:45.9]} 21... f5 {[%clk 0:01:11.5]} 22. Bd3 {[%clk 0:01:31.8]} 22...
Qc6+ {[%clk 0:01:11.3]} 23. e4 {[%clk 0:01:28.6]} 23... Qxa4 {[%clk 0:01:00.9]}
24. hxg6 {[%clk 0:01:25.4]} 24... hxg6 {[%clk 0:01:00.4]} 25. exf5 {[%clk
0:01:19.4]} 25... exf5 {[%clk 0:00:57.5]} 26. h3 {[%clk 0:00:59.5]} 26... Rfe8
{[%clk 0:00:53.1]} 27. Rc1 {[%clk 0:00:56.1]} 27... Rxc1 {[%clk 0:00:48.9]} 28.
Qxc1 {[%clk 0:00:57]} 28... Qc6+ {[%clk 0:00:44.2]} 29. Qxc6 {[%clk 0:00:54.6]}
29... Nxc6 {[%clk 0:00:45.1]} 30. Ra1 {[%clk 0:00:51.4]} 30... Re3 {[%clk
0:00:42.5]} 31. Bc4+ {[%clk 0:00:47.9]} 31... Kg7 {[%clk 0:00:36.1]} 32. Bd5
{[%clk 0:00:40.3]} 32... Rxh3+ {[%clk 0:00:31.7]} 33. Kg2 {[%clk 0:00:40.1]}
33... Rd3 {[%clk 0:00:24.7]} 34. Bxc6 {[%clk 0:00:37.6]} 34... bxc6 {[%clk
0:00:24.8]} 35. Rxa7+ {[%clk 0:00:38.1]} 35... Kh6 {[%clk 0:00:24.7]} 36. Rc7
{[%clk 0:00:33.3]} 36... Rd2+ {[%clk 0:00:20.9]} 37. Kg3 {[%clk 0:00:33.1]}
37... Rxb2 {[%clk 0:00:17.5]} 38. Rxc6 {[%clk 0:00:30.8]} 38... Rb3+ {[%clk
0:00:15.1]} 39. Kh4 {[%clk 0:00:27.3]} 39... Rb4 {[%clk 0:00:12.3]} 40. Kg3
{[%clk 0:00:25.2]} 40... Kh5 {[%clk 0:00:12.1]} 41. Re6 {[%clk 0:00:21.5]} 41...
Rb3+ {[%clk 0:00:10.7]} 42. Kg2 {[%clk 0:00:19.9]} 42... Ra3 {[%clk 0:00:10.5]}
43. Kf2 {[%clk 0:00:17.7]} 43... Ra1 {[%clk 0:00:04.7]} 44. Kg3 {[%clk 0:00:15]}
44... Rg1+ {[%clk 0:00:04.5]} 45. Kf2 {[%clk 0:00:12.7]} 45... Rc1 {[%clk
0:00:05.4]} 46. Re2 {[%clk 0:00:09.9]} 46... Kg4 {[%clk 0:00:03.8]} 47. Re6
{[%clk 0:00:06.5]} 47... Kxf4 {[%clk 0:00:03.3]} 48. Rxg6 {[%clk 0:00:06.3]}
48... Rc2+ {[%clk 0:00:04.1]} 49. Ke1 {[%clk 0:00:02.9]} 49... Kf3 {[%clk
0:00:04]} 0-1

[Event "*** SCC Grand Prix: Titled Tuesday Blitz"]
[Site "Chess.com"]
[Date "2020.06.23"]
[Round "3"]
[White "rynos0411"]
[Black "Escanor89"]
[Result "0-1"]
[WhiteElo "2375"]
[BlackElo "2559"]
[TimeControl "180+1"]
[EndTime "10:29:29 PDT"]
[Termination "Escanor89 won by resignation"]

1. d4 {[%clk 0:03:00.9]} 1... Nf6 {[%clk 0:02:59.3]} 2. c4 {[%clk 0:03:00.4]}
2... g6 {[%clk 0:02:59.3]} 3. Nc3 {[%clk 0:03:00.5]} 3... Bg7 {[%clk 0:02:59.5]}
4. e4 {[%clk 0:03:00.1]} 4... d6 {[%clk 0:02:59.7]} 5. h3 {[%clk 0:03:00]} 5...
O-O {[%clk 0:02:58.3]} 6. Be3 {[%clk 0:03:00.4]} 6... e5 {[%clk 0:02:50.7]} 7.
d5 {[%clk 0:02:57.8]} 7... a5 {[%clk 0:02:50.6]} 8. g4 {[%clk 0:02:55.6]} 8...
Na6 {[%clk 0:02:48.3]} 9. Nge2 {[%clk 0:02:55.4]} 9... Nd7 {[%clk 0:02:46.7]}
10. Ng3 {[%clk 0:02:54.9]} 10... Ndc5 {[%clk 0:02:45.4]} 11. Be2 {[%clk
0:02:52.4]} 11... Bd7 {[%clk 0:02:44.6]} 12. h4 {[%clk 0:02:46.3]} 12... c6
{[%clk 0:02:44.4]} 13. h5 {[%clk 0:02:45.3]} 13... cxd5 {[%clk 0:02:37.3]} 14.
cxd5 {[%clk 0:02:44.7]} 14... a4 {[%clk 0:02:29.9]} 15. Qd2 {[%clk 0:02:33.5]}
15... a3 {[%clk 0:02:19.1]} 16. b3 {[%clk 0:02:29.5]} 16... Rc8 {[%clk
0:02:02.4]} 17. Rc1 {[%clk 0:02:22.4]} 17... Qe8 {[%clk 0:01:16.8]} 18. Bh6
{[%clk 0:02:07.8]} 18... Qe7 {[%clk 0:01:08.2]} 19. Bxg7 {[%clk 0:02:06.4]}
19... Kxg7 {[%clk 0:01:07.6]} 20. Nb5 {[%clk 0:01:38.1]} 20... Bxb5 {[%clk
0:01:04.3]} 21. Bxb5 {[%clk 0:01:39]} 21... Kg8 {[%clk 0:00:58.7]} 22. f3 {[%clk
0:01:30.3]} 22... Qf6 {[%clk 0:00:54.6]} 23. Ke2 {[%clk 0:01:24.8]} 23... Qf4
{[%clk 0:00:30]} 24. Nf1 {[%clk 0:00:15.6]} 24... Qxd2+ {[%clk 0:00:25.2]} 25.
Kxd2 {[%clk 0:00:08.4]} 25... Nb4 {[%clk 0:00:22.4]} 26. Ra1 {[%clk 0:00:08.4]}
26... Nca6 {[%clk 0:00:15.4]} 27. Ne3 {[%clk 0:00:07.6]} 27... Rc5 {[%clk
0:00:13.9]} 28. Be2 {[%clk 0:00:05.2]} 28... Rfc8 {[%clk 0:00:12.6]} 29. hxg6
{[%clk 0:00:03.9]} 29... hxg6 {[%clk 0:00:12]} 30. g5 {[%clk 0:00:04.6]} 30...
b5 {[%clk 0:00:09.5]} 31. Rhc1 {[%clk 0:00:03.1]} 31... Rxc1 {[%clk 0:00:08.4]}
32. Rxc1 {[%clk 0:00:04]} 32... Rxc1 {[%clk 0:00:07.9]} 33. Kxc1 {[%clk
0:00:04.9]} 33... Nxa2+ {[%clk 0:00:08.2]} 34. Kc2 {[%clk 0:00:05.4]} 34...
N2b4+ {[%clk 0:00:07.6]} 35. Kb1 {[%clk 0:00:05.4]} 35... Nc7 {[%clk 0:00:05.5]}
36. Nd1 {[%clk 0:00:03.9]} 36... Nba6 {[%clk 0:00:02.8]} 37. Ka2 {[%clk
0:00:03.4]} 37... b4 {[%clk 0:00:02.7]} 38. Ne3 {[%clk 0:00:03.9]} 38... Kf8
{[%clk 0:00:02.1]} 39. Nc2 {[%clk 0:00:04.3]} 39... Ke7 {[%clk 0:00:02.4]} 40.
Bc4 {[%clk 0:00:02.8]} 40... Kd7 {[%clk 0:00:01.8]} 41. Bd3 {[%clk 0:00:01.9]}
41... Kd8 {[%clk 0:00:01.7]} 42. Bc4 {[%clk 0:00:02.3]} 42... Kc8 {[%clk
0:00:01.9]} 43. Ne3 {[%clk 0:00:02.8]} 43... Kb7 {[%clk 0:00:02.6]} 44. Nc2
{[%clk 0:00:03.4]} 44... Kb6 {[%clk 0:00:03.3]} 45. Bd3 {[%clk 0:00:04]} 45...
Kc5 {[%clk 0:00:03.7]} 46. Be2 {[%clk 0:00:04.2]} 46... Nb5 {[%clk 0:00:04]} 47.
Bxb5 {[%clk 0:00:01.8]} 47... Kxb5 {[%clk 0:00:04]} 48. Ne1 {[%clk 0:00:02.5]}
48... Kc5 {[%clk 0:00:04.1]} 49. Ng2 {[%clk 0:00:03.4]} 49... Kd4 {[%clk
0:00:04.5]} 50. Ne3 {[%clk 0:00:04.3]} 50... Kxe3 {[%clk 0:00:04.6]} 0-1

[Event "*** SCC Grand Prix: Titled Tuesday Blitz"]
[Site "Chess.com"]
[Date "2020.06.23"]
[Round "3"]
[White "AttilaTurzo"]
[Black "crazy_but_lazy"]
[Result "1/2-1/2"]
[WhiteElo "2489"]
[BlackElo "2318"]
[TimeControl "180+1"]
[EndTime "10:29:29 PDT"]
[Termination "Game drawn by repetition"]

1. e4 {[%clk 0:03:00.9]} 1... e6 {[%clk 0:02:52.5]} 2. d4 {[%clk 0:03:00.5]}
2... d5 {[%clk 0:02:53.4]} 3. Nc3 {[%clk 0:03:01]} 3... Nf6 {[%clk 0:02:52.6]}
4. Bg5 {[%clk 0:03:00]} 4... dxe4 {[%clk 0:02:48.4]} 5. Nxe4 {[%clk 0:03:00.9]}
5... Be7 {[%clk 0:02:48.6]} 6. Bxf6 {[%clk 0:03:00.1]} 6... gxf6 {[%clk
0:02:48.7]} 7. Nf3 {[%clk 0:03:00.9]} 7... a6 {[%clk 0:02:48]} 8. Bd3 {[%clk
0:03:01.2]} 8... f5 {[%clk 0:02:47.9]} 9. Ng3 {[%clk 0:02:57.7]} 9... b5 {[%clk
0:02:48]} 10. Qe2 {[%clk 0:02:55.3]} 10... Bb7 {[%clk 0:02:46.8]} 11. O-O-O
{[%clk 0:02:55.5]} 11... Qd6 {[%clk 0:02:38.7]} 12. Kb1 {[%clk 0:02:53.4]} 12...
Nd7 {[%clk 0:02:38.7]} 13. Rhe1 {[%clk 0:02:47.3]} 13... Nf6 {[%clk 0:01:55.3]}
14. Bxf5 {[%clk 0:02:43.7]} 14... O-O-O {[%clk 0:01:54.6]} 15. Bd3 {[%clk
0:02:40.1]} 15... Nd5 {[%clk 0:01:50.7]} 16. Ne4 {[%clk 0:02:37.7]} 16... Qb6
{[%clk 0:01:48.3]} 17. g3 {[%clk 0:02:23.4]} 17... Nb4 {[%clk 0:01:44.5]} 18. c3
{[%clk 0:02:23.8]} 18... Nxd3 {[%clk 0:01:44.4]} 19. Rxd3 {[%clk 0:02:24.7]}
19... Bd5 {[%clk 0:01:42]} 20. b3 {[%clk 0:02:23]} 20... Kb7 {[%clk 0:01:34.5]}
21. Ne5 {[%clk 0:02:22.1]} 21... f5 {[%clk 0:01:33.8]} 22. Nd2 {[%clk
0:02:15.8]} 22... Rhf8 {[%clk 0:01:29]} 23. f4 {[%clk 0:01:57.2]} 23... c5
{[%clk 0:01:21]} 24. Ka1 {[%clk 0:01:54.9]} 24... cxd4 {[%clk 0:01:17.7]} 25.
Rxd4 {[%clk 0:01:45.4]} 25... Bc5 {[%clk 0:01:16.7]} 26. Rd3 {[%clk 0:01:42.5]}
26... Ka7 {[%clk 0:00:47.2]} 27. Ndf3 {[%clk 0:01:37.3]} 27... Be4 {[%clk
0:00:43.2]} 28. Rxd8 {[%clk 0:01:36.9]} 28... Rxd8 {[%clk 0:00:44.1]} 29. Rd1
{[%clk 0:01:37.5]} 29... b4 {[%clk 0:00:40.5]} 30. cxb4 {[%clk 0:01:18.8]} 30...
Bxb4 {[%clk 0:00:37.5]} 31. Kb2 {[%clk 0:01:03.9]} 31... Qc5 {[%clk 0:00:29.6]}
32. Nc4 {[%clk 0:00:43.4]} 32... Rd5 {[%clk 0:00:20.7]} 33. a3 {[%clk
0:00:36.4]} 33... Ba5 {[%clk 0:00:16.2]} 34. Nxa5 {[%clk 0:00:31.9]} 34... Qxa5
{[%clk 0:00:17.1]} 35. Qe3+ {[%clk 0:00:29.5]} 35... Kb7 {[%clk 0:00:16.3]} 36.
Rd4 {[%clk 0:00:25.8]} 36... Rxd4 {[%clk 0:00:13.3]} 37. Nxd4 {[%clk 0:00:26.7]}
37... Qd5 {[%clk 0:00:13.7]} 38. Qc3 {[%clk 0:00:25.3]} 38... e5 {[%clk
0:00:12.4]} 39. fxe5 {[%clk 0:00:20.6]} 39... Qxe5 {[%clk 0:00:12.8]} 40. Qb4+
{[%clk 0:00:20.1]} 40... Ka7 {[%clk 0:00:11.6]} 41. Qc3 {[%clk 0:00:18.9]} 41...
Kb7 {[%clk 0:00:10.9]} 42. b4 {[%clk 0:00:18.1]} 42... h5 {[%clk 0:00:10.9]} 43.
h4 {[%clk 0:00:16.6]} 43... Qd6 {[%clk 0:00:09.4]} 44. Qc5 {[%clk 0:00:15.3]}
44... Qxg3 {[%clk 0:00:07.7]} 45. Qe7+ {[%clk 0:00:14.4]} 45... Kb6 {[%clk
0:00:08.3]} 46. Qc5+ {[%clk 0:00:12.6]} 46... Kb7 {[%clk 0:00:08.7]} 47. Qe7+
{[%clk 0:00:12.2]} 47... Kb6 {[%clk 0:00:09.2]} 48. Qe6+ {[%clk 0:00:11.9]}
48... Kb7 {[%clk 0:00:08.8]} 49. Qd7+ {[%clk 0:00:10.7]} 49... Kb6 {[%clk
0:00:08.2]} 50. Qd8+ {[%clk 0:00:10.6]} 50... Kb7 {[%clk 0:00:08.7]} 51. Qe7+
{[%clk 0:00:07.3]} 1/2-1/2